Cogmind - Beta 13 @@@ ROGUE MODE // 2024.07.11 @ 23:26:23 Player: Zamshi Result: Destroyed by Y-45 Defender with Heavy Assault Rifle Performance ------------- Evolutions (1) 500 Regions Visited (2) 400 Robots Destroyed (32) 160 Value Destroyed (639) 639 Prototype IDs (4) 80 Alien Tech Used (0) 0 Bonus (36) 36 TOTAL SCORE: 1815 Bonus ------- High Alert Combat Kills 36 Cogmind --------- Core Integrity 0/400 Matter 300/300 Energy 100/100 System Corruption 5% Temperature Cool (9) Movement Core (50) Location -9/Materials Parts ------- > --- POWER (1) -------- (None) > --- PROPULSION (3) --- (None) > --- UTILITY (3) ------ Targeting Computer > --- WEAPON (2) ------- Mace > --- INVENTORY (5) ---- Improved Terrain Scanner Hardlight Generator Particle Cannon Particle Cannon Advanced Beam Cannon Peak State ------------ > --- POWER ------------ Light Ion Engine > --- PROPULSION ------- Flight Unit Flight Unit > --- UTILITY ---------- Sensor Array Targeting Computer Targeting Computer > --- WEAPON ----------- Advanced Beam Cannon Improved Assault Rifle > --- INVENTORY -------- Improved Terrain Scanner Field Recycling Unit Advanced Beam Cannon [Rating: 12] Favorites ----------- Power Light Ion Engine Engine Light Ion Engine Propulsion Aluminum Leg Leg Aluminum Leg Hover Unit Hover Unit Flight Unit Flight Unit Utility Targeting Computer Device Sensor Array Processor Targeting Computer Weapon Small Laser Energy Gun Small Laser Energy Cannon Particle Cannon Ballistic Gun Light Assault Rifle Launcher Grenade Launcher Impact Weapon Mace Special Melee Weapon Datajack Build | -11 -10 -9 ------- Run | Yrd Mat Mat Slots Evolved 2 | . . 2 Power . | . . . Propulsion 1 | . . 1 Utility 1 | . . 1 Weapon . | . . . Parts Attached 30 | 8 6 16 Power 3 | 1 . 2 Engine 3 | 1 . 2 Core . | . . . Reactor . | . . . Propulsion 7 | 2 1 4 Treads . | . . . Leg 2 | 2 . . Wheel . | . . . Hover 2 | . 1 1 Flight 3 | . . 3 Utility 5 | 2 2 1 Device 3 | 2 1 . Storage . | . . . Processor 2 | . 1 1 Hackware . | . . . Protection . | . . . Artifact . | . . . Weapon 15 | 3 3 9 Energy Gun 4 | 2 . 2 Energy Cannon 4 | . . 4 Ballistic Gun 2 | 1 . 1 Ballistic Cannon . | . . . Launcher 3 | . 2 1 Special Weapon . | . . . Impact Weapon 1 | . . 1 Slashing Weapon . | . . . Piercing Weapon . | . . . Special Melee Weapon 1 | . 1 . Unidentified Prototypes 2 | . . 2 Parts Lost 10 | . 2 8 Power 2 | . . 2 Propulsion 4 | . 1 3 Utility 2 | . . 2 Weapon 2 | . 1 1 Highest Loss Streak 5 | . 1 5 To Critical Strikes . | . . . Average Slot Usage (%) 75 | . 84 66 Engine 12 | . 14 9 Leg 6 | . 11 . Hover 2 | . 2 1 Flight 5 | . . 11 Device 17 | . 23 11 Processor 11 | . 4 19 Energy Gun 6 | . 6 5 Energy Cannon 1 | . . 3 Launcher 7 | . 12 2 Special Melee Weapon 3 | . 6 . Naked Turns . | . . . Heaviest Build 12 | 7 9 12 Greatest Support 20 | 20 20 8 Greatest Overweight (x) 2 | . 2 2 Average Overweight (x) . | . . . Largest Inventory Capacity 5 | 5 5 5 Average Capacity 5 | 5 5 5 Most Carried 5 | 5 5 5 Average Carried 4 | . 4 4 Final Capacity 5 | 5 5 5 Final Carried 5 | 3 5 5 Class Distribution -------------------- 91% | Mutant 8% | Scavenger-Mutant Dominant Class ---------------- Mutant | -10/Materials Mutant | -9/Materials Resources | -11 -10 -9 ----------- Run | Yrd Mat Mat Matter Collected 704 | 291 79 334 Remotely . | . . . Salvage Created 691 | 111 229 351 Parts 45 | 15 14 16 Haulers Intercepted 4 | . 1 3 Recyclers Shooed 2 | . 1 1 Parts Field Recycled . | . . . Retrieved Matter . | . . . Parts Self-Destructed . | . . . Prevented . | . . . Kills | -11 -10 -9 ------- Run | Yrd Mat Mat Combat Hostiles Destroyed 19 | 1 9 9 Guns 4 | 1 . 3 Cannons 5 | . . 5 AOE 9 | . 9 . Classes Destroyed 8 | 2 4 2 Worker 2 | . 1 1 Builder 2 | . 2 . Tunneler 4 | 4 . . Hauler 4 | . 1 3 Watcher 1 | . 1 . Swarmer 6 | . . 6 Grunt 12 | 1 9 2 Sentry 1 | . . 1 Best Kill Streak 5 | 5 5 5 Combat Bots Only 5 | 1 5 5 Max Kills in Single Turn 3 | 1 2 3 Gunslinging . | . . . Exploded 2 | . 2 . Melee . | . . . Uniques/NPCs Destroyed . | . . . Combat | -11 -10 -9 -------- Run | Yrd Mat Mat Hostile Shots Fired 112 | 3 27 82 Missed 33 | 1 10 22 Damage Taken 1168 | 20 301 847 Core 506 | . 95 411 Absorbed by Shields . | . . . Core Remaining (%) 81 | 100 62 . Volleys Fired 54 | 11 22 21 Largest 2 | 2 2 2 Hottest 136 | 60 70 136 Shots Fired 87 | 22 34 31 Gun 48 | 22 12 14 Cannon 16 | . . 16 Launcher 23 | . 22 1 Special . | . . . Kinetic 11 | 11 . . Thermal 53 | 11 12 30 Explosive 23 | . 22 1 Electromagnetic . | . . . Robot Hit Streak 9 | 4 9 7 Robot Miss Streak 2 | 2 2 2 Penetration Max . | . . . Secondary Targets . | . . . Shots Hit Robots 55 | 12 13 30 Core Hits 50 | 7 27 16 Critical Kills . | . . . Critical Parts Destroyed 1 | . . 1 Critical Strikes 1 | . . 1 Smash 1 | . . 1 Melee Attacks 11 | . 1 10 Impact 10 | . . 10 Slashing . | . . . Piercing . | . . . Sneak Attacks 1 | . 1 . Combat Hostiles . | . . . Follow-up Attacks . | . . . Damage Inflicted 1988 | 111 1273 604 Guns 271 | 111 56 104 Cannons 226 | . . 226 Explosions 1298 | . 1217 81 Melee 193 | . . 193 Ramming . | . . . Kinetic 56 | 56 . . Thermal 441 | 55 56 330 Explosive 1298 | . 1217 81 Electromagnetic . | . . . Impact 193 | . . 193 Slashing . | . . . Piercing . | . . . Highest Corruption 5 | . . 5 Average Corruption 5 | . . 5 Corruption Purged . | . . . Corruption Blocked . | . . . Effects 3 | . . 3 Matter Fused 1 | . . 1 Heat Flow Errors 1 | . . 1 Energy Discharges 1 | . . 1 Overload Shots . | . . . Overflow Damage 77 | . 33 44 Projectiles 1 | . . 1 Explosions 33 | . 33 . Melee 43 | . . 43 Knockbacks . | . . . Impact . | . . . Kinetic . | . . . Secondary . | . . . Self-Inflicted Damage 81 | . 81 . Shots 4 | . 4 . Rammed 1 | . . 1 Targets Rammed 1 | . . 1 Kicked . | . . . Crushed . | . . . Highest Temperature 548 | 72 75 548 Average Temperature 86 | 38 20 144 Received Heat Transfer 351 | 12 138 201 Effects 4 | . . 4 Damage (minor) 1 | . . 1 Damage (major) 2 | . . 2 Damage (core) 1 | . . 1 Siege Activations . | . . . Robots Corrupted . | . . . Combat Hostiles . | . . . Parts Fried . | . . . Impact Corruptions 2 | . . 2 Robots Melted . | . . . Combat Hostiles . | . . . Parts Melted 1 | . . 1 Heat Transferred 882 | 125 125 632 Parts Sabotaged . | . . . Parts Stolen . | . . . Parts Stripped . | . . . Power Chain Reactions . | . . . Alert | -11 -10 -9 ------- Run | Yrd Mat Mat Peak Influence 594 | 40 397 594 Initial 167 | . 26 167 Average 262 | 18 245 358 Maximum Alert Level 2 | . 1 2 Low Security (%) 35 | 100 25 26 Level 1 48 | . 75 34 Level 2 16 | . . 39 Level 3 . | . . . Level 4 . | . . . Level 5 . | . . . High Security . | . . . Max Security . | . . . Squads Dispatched 3 | . 2 1 Investigation 1 | . 1 . Extermination . | . . . Reinforcement 2 | . 1 1 Assault . | . . . Garrison . | . . . Intercept . | . . . Searches Triggered . | . . . Construction Impeded . | . . . Haulers Reinforced . | . . . Active Scanning Responses . | . . . Cargo Convoy Interrupts . | . . . Stealth | -11 -10 -9 --------- Run | Yrd Mat Mat Distress Signals 1 | . . 1 Communications Jammed . | . . . Distress Signals . | . . . Times Spotted 37 | 1 13 23 Peak Tracking Total 8 | 1 4 8 Tactical Retreats 4 | . . 4 Traps | -11 -10 -9 ------- Run | Yrd Mat Mat Traps Triggered 1 | . 1 . Indirectly . | . . . Trap Hack Attempts . | . . . Triggered . | . . . Disarmed . | . . . Reprogrammed . | . . . Reused . | . . . Traps Extracted . | . . . Installed . | . . . Triggered . | . . . Machines | -11 -10 -9 ---------- Run | Yrd Mat Mat Machines Disabled 1 | . 1 . Max in Single Turn 1 | . 1 . Machines Repaired . | . . . Machines Dismantled . | . . . Machines Sabotaged . | . . . Overloaded Fab Kills . | . . . Hacking | -11 -10 -9 --------- Run | Yrd Mat Mat Machines Accessed 6 | . 2 4 Terminals 4 | . 1 3 Fabricators . | . . . Repair Stations . | . . . Recycling Units 1 | . 1 . Scanalyzers 1 | . . 1 Garrison Access . | . . . Total Hacks 20 | . 5 15 Successful 11 | . 2 9 Failed 9 | . 3 6 Catastrophic 1 | . 1 . Database Lockouts . | . . . Manual . | . . . Terminals 12 | . 1 11 Fabricators . | . . . Repair Stations . | . . . Recycling Units 4 | . 4 . Scanalyzers 4 | . . 4 Garrison Access . | . . . Terminal Hacks 6 | . . 6 Record 2 | . . 2 Prototype ID Bank 1 | . . 1 Alert Level 2 | . . 2 Recall Reinforcements 1 | . . 1 Fabricator Hacks . | . . . Repair Station Hacks . | . . . Recycling Unit Hacks 2 | . 2 . Report Inventory 1 | . 1 . Retrieve Components 1 | . 1 . Scanalyzer 3 | . . 3 Insert Component 1 | . . 1 Analyze 2 | . . 2 Garrison Access Hacks . | . . . Unauthorized Hacks . | . . . Terminals . | . . . Fabricators . | . . . Repair Stations . | . . . Recycling Units . | . . . Scanalyzers . | . . . Garrison Access . | . . . Data Cores Recovered . | . . . Used . | . . . Hacking Detections 6 | . 2 4 Full Trace Events . | . . . Feedback Events . | . . . Feedback Blocked . | . . . Robot Schematics Acquired . | . . . Robots Built . | . . . Authchips . | . . . Time . | . . . Total Robot Build Rating . | . . . Part Schematics Acquired 1 | . . 1 Parts Built . | . . . Authchips . | . . . Time . | . . . Total Part Build Rating . | . . . Parts Repaired . | . . . Time . | . . . Parts Recycled . | . . . Recycled Matter . | . . . Retrieved Matter . | . . . Retrieved Components 5 | . 5 . Parts Scanalyzed 1 | . . 1 Part Schematics Acquired 1 | . . 1 Parts Damaged . | . . . Bothacking | -11 -10 -9 ------------ Run | Yrd Mat Mat Used RIF Installer . | . . . Robots Hacked . | . . . Non-combat . | . . . Combat . | . . . Robot Hacks Applied . | . . . Relay Couplers Released . | . . . Fabnet Peak Effective % . | . . . Robots Rewired . | . . . Allies Hacked . | . . . Hacks Repelled . | . . . Allies | -11 -10 -9 -------- Run | Yrd Mat Mat Total Allies . | . . . Largest Group . | . . . Highest-Rated Group . | . . . Highest-Rated Ally . | . . . Total Orders . | . . . Ally Attacks . | . . . Total Damage . | . . . Kills . | . . . Allies Corrupted . | . . . Allies Melted . | . . . Intel | -11 -10 -9 ------- Run | Yrd Mat Mat Robot Analysis Total . | . . . Derelict Logs Recovered . | . . . Drone Launches . | . . . Drone Recoveries . | . . . Exploration | -11 -10 -9 ------------- Run | Yrd Mat Mat Turns Passed 875 | 115 396 364 Spaces Moved 751 | 75 250 426 Core 160 | 33 86 41 Treads . | . . . Legs 145 | 42 103 . Wheels . | . . . Hover 116 | . 61 55 Flight 330 | . . 330 Fastest Speed 37 | 50 120 37 Average Speed 84 | 89 130 57 Slowest Speed 200 | 120 150 200 Overloaded Moves . | . . . Propulsion Burnouts . | . . . Robots Hopped 5 | . . 5 Cave-ins Triggered . | . . . Exploration Rate (%) 33 | 6 52 42 Regions Visited 2 Branch Regions . Pre-discovered Areas . | . . . Known Exits Taken . | . . . Unknown Exits Taken 2 | 1 1 . Scrap Searched . | . . . Spaces Dug . | . . . Terrain Destroyed 110 | . 105 5 Melee . | . . . Projectile . | . . . AOE 110 | . 105 5 Terrain Rammed . | . . . Walls Destroyed . | . . . Machines Disabled . | . . . Actions | -11 -10 -9 --------- Run | Yrd Mat Mat Total 881 | 103 285 493 Wait 3 | . . 3 Move 740 | 74 249 417 Hop 4 | . . 4 Pick Up 24 | 10 3 11 Fast Attach 6 | . 2 4 Attach 13 | 7 . 6 Detach 1 | . . 1 Swap 11 | 1 4 6 Drop 13 | . 4 9 Fire 54 | 11 22 21 Melee 11 | . 1 10 Ram 1 | . . 1 Kick . | . . . Crush . | . . . Escape Stasis . | . . . Rewire . | . . . Trap . | . . . Miscellaneous . | . . . Route ------- -11/Scrapyard -10/Materials (discovered 2 exits: *Mat x2) -9/Materials (discovered 1 exit: [*Sto]) History --------- Turn | Location | Event 2 | -11/Scrapyard | Met Revision 17 41 | -11/Scrapyard | Discovered new exit (range 8) 116 | -11/Scrapyard | Entered Materials 292 | -10/Materials | Discovered new exit (range 8) 316 | -10/Materials | Build established: Mutant 439 | -10/Materials | Discovered new exit (range 4) 512 | -10/Materials | Entered another Materials area 512 | -9/Materials | Evolved 2 slots: Propulsion x1, Utility x1 671 | -9/Materials | Discovered new exit (range 15) 860 | -9/Materials | Core integrity fell below 50% 872 | -9/Materials | Core integrity fell below 20% 876 | -9/Materials | Destroyed by Y-45 Defender with Heavy Assault Rifle Last Messages --------------- Overheating: Targeting Computer damaged (-4). K-01 Serf collects debris. Acquired Mace. Flight Unit destroyed. System corrupted: Energy discharge (-9). Acquired Imp. Ion Engine. W-16 Scout sends out distress signal. Flight Unit destroyed. Targeting Computer destroyed. Critical hit (Burn: +37). Sensor Array destroyed. Destroyed Heat Sink. Y-45 Defender system corrupted by crushing effect. Imp. Ion Engine destroyed. Y-45 Defender suffers critical hit (Smash). Destroyed Imp. Ion Engine. Y-45 Defender system corrupted by crushing effect. Y-45 Defender system terminally corrupted. Map ----- +----------------------------------------------------+ | | | | | | | | | | | | | ?????????????????????????????????????????????????? | | ?????????????????????????????????????????????????? | | ?????????????????????????????????????????????????? | | ?????????????????????????????????????????????????? | | ?????????????????????????????????????????????????? | | ?????????????????????????????????????????????????? | | ?????????????????????????????????????????????????? | | ?????????????????????????????????????????????????? | | ?????????????????????????????????????????????????? | | ?????????????????????????????????????????????????? | | ?????????????????????????????????????????????????? | | ?????????????????????#####+##?????????##+######### | | ?????????????????????? +????????## | | ??????????????????????? #????????+ | | ????????????????????????w #?????????# | | ??????????????????#####?# #?????????# # | | ??????????????????? # #?????????# # | | ????????????????????? # #?????????# # | | ??????????????????????? +% #####+##### # | | ????????????????????????#@ mY # | | ????????????????????????# # | | ????????????????????????# Y # | | ????????????????????????# """ """ """ """ # | | ????????????????????????# """ """ """ """ # | | ????????????????????????# """ """ """ """ # | | ????????????????????????# # | | ????????????????????????# | | ????????????????????????# ! | | ????????????????????????# | | ????????????????????????##"T"####+#############+## | | ?????????????????????????#"""#???????????????? ?? | | ?????????????????????????#####????????????????" ?? | | ??????????????????????????????????????????????""?? | | ????????????????????????????????????????????? ""?? | | ????????????????????????????????????????????? ?? | | ??????????????????????????????????????????????? ?? | | ?????????????????????????????????????????????????? | | ?????????????????????????????????????????????????? | | ?????????????????????????????????????????????????? | | ?????????????????????????????????????????????????? | | ?????????????????????????????????????????????????? | | ?????????????????????????????????????????????????? | | ?????????????????????????????????????????????????? | | ?????????????????????????????????????????????????? | +----------------------------------------------------+ Best States ------------- Heat Dissipation 28 Energy Generation 12 Energy Capacity 265 Matter Stores 300 Matter Capacity 300 Sight Range 16 Robot Scan Range 14 Terrain Scan Range 16 Terrain Scan Density 10 Evasion (%) 62 Targeting Accuracy 10 Item Schematics ----------------- Imp. Hover Unit | -9/Materials | Scanalyzed Robot Schematics ------------------ None Fabricated ------------ Nothing Alien Tech Used ----------------- None Achievements -------------- GoHome() Loot Pinata Challenges ------------ None Game ------ Seed CarbideAngularEngine Manual? 0 Play Time 00:22:01 Cumulative 2.7 hours Start 2024.07.11 @ 23:03:42 End 2024.07.11 @ 23:26:23 Sessions 1 Manual Loads 0 Difficulty Rogue Special Mode None Game No. 4 Rogue 4 Adventurer 0 Explorer 0 Win Type - Total 0 Types 0/0/0/0/0/0/0/0/0 Lore% 1 Gallery% 5 Achievement% 3 Wizard Run 0 Options --------- Layout 1 ASCII 0 Keyboard 0 Movement Mouse Keybinds 0 Fullscreen 1 Font 24/Smallcaps Map View 50x35 Zoom Use 0% Tactical HUD 0 Map Filters NONE Filters NONE Steam 1 RUN: 63457964-401e-4530-812e-4fbb84870d4f